[Event "44th Chess Olympiad Open 2022"]
[Site "Chennai"]
[Date "2022.08.06"]
[Round "8.51"]
[White "Chavez, Ricardo Ernesto"]
[Black "Rongwane, Gomolemo"]
[Result "1/2-1/2"]
[WhiteElo "2179"]
[BlackElo "2033"]
[Annotator "NA RC"]
[PlyCount "80"]
[EventDate "2022.??.??"]
[TimeControl "60"]

1. e4 {[%emt 0:00:04]} e5 {[%emt 0:00:20]} 2. Nf3 {[%emt 0:00:05]} Nc6 {
[%emt 0:00:10]} 3. Bb5 {[%emt 0:00:06]} a6 {[%emt 0:00:12]} 4. Ba4 {[%emt 0:00:
00]} Nf6 {[%emt 0:00:44]} 5. Qe2 {[%emt 0:00:06]} b5 {[%emt 0:01:21]} 6. Bb3 {
[%emt 0:00:06]} Be7 {[%emt 0:00:18]} 7. c3 {[%emt 0:00:08]} O-O {[%emt 0:00:12]
} 8. O-O {[%emt 0:00:36]} d6 {[%emt 0:02:18]} 9. Rd1 {[%emt 0:00:12]} Na5 {
[%emt 0:00:36]} 10. Bc2 {[%emt 0:00:07]} c5 {[%emt 0:00:08]} 11. d4 {[%emt 0:
00:00]} Qc7 {[%emt 0:00:09]} 12. d5 {[%emt 0:00:29]} c4 {[%emt 0:01:15]} 13. b4
{[%emt 0:03:27]} cxb3 {[%emt 0:00:45]} 14. axb3 {[%emt 0:00:10]} Bd7 {[%emt 0:
00:00]} 15. Ba3 {[%emt 0:06:31]} Bg4 {[%emt 0:06:20]} 16. h3 {[%emt 0:00:14]}
Bxf3 {[%emt 0:00:21]} 17. Qxf3 {[%emt 0:00:11]} Rfc8 {[%emt 0:00:30]} 18. Bb2 {
[%emt 0:03:39]} Nb7 {[%emt 0:00:23]} 19. b4 {[%emt 0:02:24]} Nd7 {[%emt 0:00:
00]} 20. Nd2 {[%emt 0:10:13]} Nb6 {[%emt 0:00:30]} 21. Qe2 {[%emt 0:00:47]} Bg5
{[%emt 0:00:42]} 22. Bb3 {[%emt 0:17:12]} Bxd2 {[%emt 0:03:21]} 23. Rxd2 {
[%emt 0:00:42]} Nc4 {[%emt 0:00:45]} 24. Rd3 {[%emt 0:06:45]} a5 {[%emt 0:00:
00]} 25. Bc1 {[%emt 0:01:56]} a4 {[%emt 0:07:53]} 26. Bc2 {[%emt 0:01:45]} Qd7
{[%emt 0:03:22]} 27. Rg3 {[%emt 0:01:19]} Kh8 {[%emt 0:02:14]} 28. Kh2 {
[%emt 0:01:27]} Rg8 {[%emt 0:03:24]} 29. Qh5 {[%emt 0:01:38]} f6 {[%emt 0:00:
00]} 30. Bd1 {[%emt 0:00:58]} g6 {[%emt 0:07:08]} 31. Qh4 {[%emt 0:03:48]} Raf8
{[%emt 0:00:26]} 32. Bh6 {[%emt 0:03:08]} Rf7 {[%emt 0:00:27]} 33. Bg4 {
[%emt 0:00:52]} Qe7 {[%emt 0:03:35]} 34. Be6 {[%emt 0:14:03]} Nd8 {[%emt 0:00:
00]} 35. Qg4 {[%emt 0:00:09]} Nxe6 {[%emt 0:09:44]} 36. dxe6 {[%emt 0:01:04]}
Rff8 {[%emt 0:00:11]} 37. Bxf8 {[%emt 0:00:10]} Rxf8 {[%emt 0:00:08]} 38. f4 {
[%emt 0:07:16]} exf4 {[%emt 0:00:24]} 39. Qxf4 {[%emt 0:00:48]} Qxe6 {[%emt 0:
00:00]} 40. Rxg6 {[%emt 0:10:14]} hxg6 {[%emt 0:07:23]} 1/2-1/2

[Event "44th Chess Olympiad Open 2022"]
[Site "Chennai"]
[Date "2022.08.06"]
[Round "8.51"]
[White "Monnaatsheko, Keletshabile"]
[Black "Burgos Figueroa, Carlos E."]
[Result "0-1"]
[WhiteElo "2014"]
[BlackElo "2164"]
[Annotator "NA RC"]
[PlyCount "80"]
[EventDate "2022.??.??"]
[TimeControl "60"]

1. d4 {[%emt 0:00:09]} c5 {[%emt 0:00:24]} 2. e3 {[%emt 0:00:53]} e6 {[%emt 0:
00:00]} 3. Bd3 {[%emt 0:00:59]} Nf6 {[%emt 0:00:07]} 4. Nf3 {[%emt 0:00:21]} b6
{[%emt 0:00:20]} 5. O-O {[%emt 0:00:33]} Bb7 {[%emt 0:00:04]} 6. Nbd2 {[%emt 0:
00:00]} Be7 {[%emt 0:00:06]} 7. c3 {[%emt 0:01:15]} d5 {[%emt 0:00:26]} 8. Ne5
{[%emt 0:01:07]} Nbd7 {[%emt 0:00:07]} 9. f4 {[%emt 0:00:42]} O-O {[%emt 0:00:
00]} 10. Qf3 {[%emt 0:00:28]} Qc7 {[%emt 0:02:14]} 11. g4 {[%emt 0:00:12]} Ne8
{[%emt 0:01:38]} 12. Qh3 {[%emt 0:03:57]} g6 {[%emt 0:00:06]} 13. g5 {[%emt 0:
00:00]} Nxe5 {[%emt 0:10:07]} 14. dxe5 {[%emt 0:01:46]} Ng7 {[%emt 0:01:33]}
15. Rf3 {[%emt 0:06:24]} c4 {[%emt 0:02:03]} 16. Bc2 {[%emt 0:00:26]} d4 {
[%emt 0:00:47]} 17. exd4 {[%emt 0:00:44]} Bxf3 {[%emt 0:00:59]} 18. Qxf3 {
[%emt 0:00:09]} Nf5 {[%emt 0:01:18]} 19. Ne4 {[%emt 0:03:20]} Rfc8 {[%emt 0:00:
00]} 20. Be3 {[%emt 0:12:40]} Rab8 {[%emt 0:01:39]} 21. Bf2 {[%emt 0:02:28]} b5
{[%emt 0:01:08]} 22. b4 {[%emt 0:03:21]} cxb3 {[%emt 0:00:49]} 23. axb3 {
[%emt 0:00:23]} a5 {[%emt 0:00:46]} 24. Bd3 {[%emt 0:02:41]} Rd8 {[%emt 0:00:
00]} 25. Qh3 {[%emt 0:13:31]} b4 {[%emt 0:03:08]} 26. c4 {[%emt 0:21:15]} a4 {
[%emt 0:03:17]} 27. d5 {[%emt 0:03:44]} exd5 {[%emt 0:01:21]} 28. Nf6+ {
[%emt 0:00:19]} Bxf6 {[%emt 0:00:09]} 29. gxf6 {[%emt 0:00:15]} Kh8 {[%emt 0:
00:00]} 30. Rxa4 {[%emt 0:04:22]} dxc4 {[%emt 0:04:50]} 31. Be4 {[%emt 0:04:20]
} cxb3 {[%emt 0:02:32]} 32. Qxb3 {[%emt 0:00:54]} Qc1+ {[%emt 0:01:00]} 33. Kg2
{[%emt 0:00:48]} Qxf4 {[%emt 0:00:02]} 34. Bxf5 {[%emt 0:00:54]} Qxf5 {[%emt 0:
00:00]} 35. Rxb4 {[%emt 0:01:31]} Rxb4 {[%emt 0:00:57]} 36. Qxb4 {[%emt 0:00:
00]} Qxe5 {[%emt 0:00:10]} 37. Qe7 {[%emt 0:00:53]} Qd5+ {[%emt 0:00:31]} 38.
Kh3 {[%emt 0:00:40]} Qf3+ {[%emt 0:02:27]} 39. Bg3 {[%emt 0:00:07]} Qf1+ {
[%emt 0:00:23]} 40. Kg4 {[%emt 0:01:12]} Qf5+ {[%emt 0:00:08]} 0-1

[Event "44th Chess Olympiad Open 2022"]
[Site "Chennai"]
[Date "2022.08.06"]
[Round "8.52"]
[White "Mc Intosh, Isaiah"]
[Black "Jelic, Dejan"]
[Result "1-0"]
[WhiteElo "2215"]
[BlackElo "1905"]
[Annotator "NA RC"]
[PlyCount "59"]
[EventDate "2022.??.??"]
[TimeControl "60"]

1. d4 {[%emt 0:00:03]} d5 {[%emt 0:00:04]} 2. c4 {[%emt 0:00:05]} e6 {[%emt 0:
00:00]} 3. g3 {[%emt 0:00:04]} Nf6 {[%emt 0:00:22]} 4. Nf3 {[%emt 0:00:08]} Bd7
{[%emt 0:06:15]} 5. Bg2 {[%emt 0:01:27]} Bb4+ {[%emt 0:03:46]} 6. Bd2 {[%emt 0:
00:00]} a5 {[%emt 0:01:37]} 7. O-O {[%emt 0:01:34]} O-O {[%emt 0:02:46]} 8. c5
{[%emt 0:12:31]} Bxd2 {[%emt 0:00:36]} 9. Qxd2 {[%emt 0:00:22]} Re8 {[%emt 0:
00:00]} 10. Nc3 {[%emt 0:02:20]} Nc6 {[%emt 0:09:24]} 11. Rad1 {[%emt 0:05:37]}
a4 {[%emt 0:04:27]} 12. Rfe1 {[%emt 0:12:33]} Na5 {[%emt 0:09:16]} 13. Ne5 {
[%emt 0:00:14]} Bc6 {[%emt 0:06:25]} 14. Qc2 {[%emt 0:03:16]} a3 {[%emt 0:00:
00]} 15. b4 {[%emt 0:00:54]} Nc4 {[%emt 0:00:39]} 16. b5 {[%emt 0:00:10]} Bd7 {
[%emt 0:01:36]} 17. Nxc4 {[%emt 0:00:27]} dxc4 {[%emt 0:00:16]} 18. Bxb7 {
[%emt 0:00:08]} Rb8 {[%emt 0:00:34]} 19. c6 {[%emt 0:00:09]} Bc8 {[%emt 0:00:
00]} 20. Bxc8 {[%emt 0:00:07]} Rxc8 {[%emt 0:00:53]} 21. e4 {[%emt 0:00:21]}
Ra8 {[%emt 0:04:00]} 22. Qe2 {[%emt 0:00:22]} h5 {[%emt 0:01:56]} 23. Qxc4 {
[%emt 0:01:57]} h4 {[%emt 0:00:10]} 24. d5 {[%emt 0:02:40]} e5 {[%emt 0:00:52]}
25. b6 {[%emt 0:00:25]} cxb6 {[%emt 0:00:25]} 26. d6 {[%emt 0:00:06]} Re6 {
[%emt 0:01:01]} 27. d7 {[%emt 0:03:14]} Qc7 {[%emt 0:02:31]} 28. Nb5 {[%emt 0:
00:00]} Qxc6 {[%emt 0:00:37]} 29. Qxc6 {[%emt 0:00:14]} Rxc6 {[%emt 0:00:05]}
30. d8=Q+ {[%emt 0:00:05]} 1-0

[Event "44th Chess Olympiad Open 2022"]
[Site "Chennai"]
[Date "2022.08.06"]
[Round "8.52"]
[White "Harper, Ryan"]
[Black "Mannhart, Marcel"]
[Result "1-0"]
[WhiteElo "2208"]
[BlackElo "2110"]
[Annotator "RC"]
[PlyCount "109"]
[EventDate "2022.??.??"]
[TimeControl "60"]

1. e4 {[%emt 0:00:03]} g6 {[%emt 0:00:12]} 2. d4 {[%emt 0:00:31]} Bg7 {[%emt 0:
00:00]} 3. Nc3 {[%emt 0:00:20]} d6 {[%emt 0:00:26]} 4. Be2 {[%emt 0:08:31]} a6
{[%emt 0:01:16]} 5. Nf3 {[%emt 0:07:46]} Nd7 {[%emt 0:03:12]} 6. h4 {[%emt 0:
00:00]} h5 {[%emt 0:08:47]} 7. Ng5 {[%emt 0:10:07]} e6 {[%emt 0:07:14]} 8. Be3
{[%emt 0:13:20]} b5 {[%emt 0:01:49]} 9. a3 {[%emt 0:02:33]} Qe7 {[%emt 0:03:36]
} 10. Qd2 {[%emt 0:06:00]} Bb7 {[%emt 0:05:04]} 11. Rd1 {[%emt 0:05:35]} Nh6 {
[%emt 0:02:20]} 12. f3 {[%emt 0:00:38]} f6 {[%emt 0:03:11]} 13. Nh3 {[%emt 0:
00:00]} Nf7 {[%emt 0:00:11]} 14. Nf4 {[%emt 0:01:23]} Nf8 {[%emt 0:00:58]} 15.
a4 {[%emt 0:07:51]} b4 {[%emt 0:02:49]} 16. Na2 {[%emt 0:00:09]} c5 {[%emt 0:
00:00]} 17. c3 {[%emt 0:04:55]} bxc3 {[%emt 0:08:57]} 18. bxc3 {[%emt 0:00:22]}
f5 {[%emt 0:07:12]} 19. exf5 {[%emt 0:04:37]} gxf5 {[%emt 0:01:22]} 20. Kf2 {
[%emt 0:08:20]} cxd4 {[%emt 0:07:52]} 21. cxd4 {[%emt 0:00:00]} Nd8 {[%emt 0:
00:00]} 22. Rb1 {[%emt 0:00:00]} Bf6 {[%emt 0:01:47]} 23. g3 {[%emt 0:00:00]}
Qf7 {[%emt 0:00:18]} 24. Rhc1 {[%emt 0:00:00]} Ng6 {[%emt 0:15:36]} 25. Nxg6 {
[%emt 0:00:00]} Qxg6 {[%emt 0:00:07]} 26. Bg5 {[%emt 0:00:41]} Rh7 {[%emt 0:00:
00]} 27. Rb6 {[%emt 0:00:57]} Rd7 {[%emt 0:00:35]} 28. f4 {[%emt 0:01:30]} Kf8
{[%emt 0:01:14]} 29. Qd1 {[%emt 0:00:34]} Bxg5 {[%emt 0:01:52]} 30. Bxh5 {
[%emt 0:00:46]} Qg8 {[%emt 0:00:45]} 31. fxg5 {[%emt 0:01:29]} e5 {[%emt 0:00:
00]} 32. d5 {[%emt 0:03:03]} Qxd5 {[%emt 0:01:46]} 33. Qxd5 {[%emt 0:00:08]}
Bxd5 {[%emt 0:00:06]} 34. Nb4 {[%emt 0:00:35]} Bb7 {[%emt 0:00:27]} 35. Bg6 {
[%emt 0:00:25]} a5 {[%emt 0:00:24]} 36. Na2 {[%emt 0:00:11]} Bd5 {[%emt 0:00:
00]} 37. Nc3 {[%emt 0:01:02]} Be6 {[%emt 0:00:08]} 38. Nb5 {[%emt 0:00:11]} Ke7
{[%emt 0:00:45]} 39. Ke3 {[%emt 0:00:28]} d5 {[%emt 0:00:35]} 40. Rc5 {[%emt 0:
00:00]} Nb7 {[%emt 0:06:24]} 41. Rc7 {[%emt 0:09:07]} d4+ {[%emt 0:02:43]} 42.
Kd2 {[%emt 0:00:23]} Nd8 {[%emt 0:06:05]} 43. Rc5 {[%emt 0:04:38]} d3 {[%emt 0:
00:00]} 44. Rxe5 {[%emt 0:05:55]} Rc8 {[%emt 0:00:25]} 45. Bxf5 {[%emt 0:01:48]
} Rc2+ {[%emt 0:01:23]} 46. Kd1 {[%emt 0:00:05]} Re2 {[%emt 0:07:08]} 47. Bxe6
{[%emt 0:02:13]} Rxe5 {[%emt 0:00:22]} 48. Bxd7 {[%emt 0:00:06]} Kxd7 {[%emt 0:
00:00]} 49. Rd6+ {[%emt 0:00:09]} Ke7 {[%emt 0:00:24]} 50. Rxd3 {[%emt 0:00:09]
} Ne6 {[%emt 0:00:25]} 51. Nd4 {[%emt 0:02:13]} Re4 {[%emt 0:01:04]} 52. Nf5+ {
[%emt 0:00:42]} Kf8 {[%emt 0:00:25]} 53. g6 {[%emt 0:00:27]} Rxa4 {[%emt 0:00:
00]} 54. Rd7 {[%emt 0:00:23]} Rg4 {[%emt 0:00:37]} 55. Rf7+ {[%emt 0:00:18]}
1-0

[Event "44th Chess Olympiad Open 2022"]
[Site "Chennai"]
[Date "2022.08.06"]
[Round "8.52"]
[White "Schadler, Martin"]
[Black "Johnson, Joshua"]
[Result "0-1"]
[WhiteElo "1939"]
[BlackElo "2178"]
[Annotator "NA RC"]
[PlyCount "78"]
[EventDate "2022.??.??"]
[TimeControl "60"]

1. d4 {[%emt 0:00:04]} d5 {[%emt 0:00:06]} 2. c4 {[%emt 0:00:11]} c6 {[%emt 0:
00:00]} 3. Nf3 {[%emt 0:00:28]} Nf6 {[%emt 0:00:04]} 4. g3 {[%emt 0:00:14]} Bf5
{[%emt 0:00:22]} 5. Bg2 {[%emt 0:00:14]} e6 {[%emt 0:00:10]} 6. O-O {[%emt 0:
00:00]} Be7 {[%emt 0:01:41]} 7. Re1 {[%emt 0:02:20]} h6 {[%emt 0:08:49]} 8. Nc3
{[%emt 0:00:42]} O-O {[%emt 0:13:55]} 9. Ne5 {[%emt 0:03:12]} Nbd7 {[%emt 0:00:
00]} 10. cxd5 {[%emt 0:29:25]} exd5 {[%emt 0:00:00]} 11. Nxd7 {[%emt 0:12:55]}
Qxd7 {[%emt 0:00:00]} 12. e4 {[%emt 0:08:11]} dxe4 {[%emt 0:00:00]} 13. Nxe4 {
[%emt 0:10:01]} Nxe4 {[%emt 0:00:00]} 14. Bxe4 {[%emt 0:04:13]} Bf6 {[%emt 0:
00:00]} 15. Bxf5 {[%emt 0:01:33]} Qxf5 {[%emt 0:00:00]} 16. Be3 {[%emt 0:00:47]
} Rfd8 {[%emt 0:00:00]} 17. Qb3 {[%emt 0:00:25]} Rd7 {[%emt 0:01:08]} 18. Rac1
{[%emt 0:00:11]} Qd5 {[%emt 0:03:06]} 19. Qa3 {[%emt 0:07:59]} a6 {[%emt 0:00:
00]} 20. Rcd1 {[%emt 0:03:56]} Rad8 {[%emt 0:03:14]} 21. Qa4 {[%emt 0:01:16]}
Qh5 {[%emt 0:04:31]} 22. Qc2 {[%emt 0:03:49]} Rd5 {[%emt 0:06:18]} 23. Rd2 {
[%emt 0:02:11]} Qg4 {[%emt 0:02:30]} 24. Rde2 {[%emt 0:00:48]} Rf8 {[%emt 0:00:
00]} 25. Qb3 {[%emt 0:02:33]} Qd7 {[%emt 0:00:28]} 26. Rd1 {[%emt 0:01:30]} Re8
{[%emt 0:05:25]} 27. Red2 {[%emt 0:00:54]} Rd8 {[%emt 0:01:51]} 28. Qb4 {
[%emt 0:00:52]} a5 {[%emt 0:05:27]} 29. Qc3 {[%emt 0:01:58]} c5 {[%emt 0:02:03]
} 30. Qb3 {[%emt 0:01:13]} cxd4 {[%emt 0:00:34]} 31. Rd3 {[%emt 0:00:09]} Qg4 {
[%emt 0:03:11]} 32. Bf4 {[%emt 0:00:34]} b5 {[%emt 0:11:20]} 33. Bc7 {[%emt 0:
00:00]} a4 {[%emt 0:00:25]} 34. Qc2 {[%emt 0:00:26]} Rc8 {[%emt 0:00:45]} 35.
Qc6 {[%emt 0:00:33]} Rd7 {[%emt 0:02:17]} 36. Qxb5 {[%emt 0:01:26]} Rdxc7 {
[%emt 0:00:24]} 37. Qxa4 {[%emt 0:00:27]} Rc1 {[%emt 0:00:56]} 38. b4 {[%emt 0:
00:00]} Qe2 {[%emt 0:00:34]} 39. R3d2 {[%emt 0:00:30]} Qxd2 {[%emt 0:00:09]}
0-1

[Event "44th Chess Olympiad Open 2022"]
[Site "Chennai"]
[Date "2022.08.06"]
[Round "8.52"]
[White "Frick, Renato"]
[Black "Munro, Allan"]
[Result "0-1"]
[WhiteElo "1900"]
[BlackElo "2008"]
[Annotator "NA RC"]
[PlyCount "40"]
[EventDate "2022.??.??"]
[TimeControl "60"]

1. e4 {[%emt 0:00:07]} c6 {[%emt 0:00:17]} 2. d4 {[%emt 0:00:10]} d5 {[%emt 0:
00:00]} 3. exd5 {[%emt 0:00:22]} cxd5 {[%emt 0:00:16]} 4. Bd3 {[%emt 0:00:07]}
Nc6 {[%emt 0:00:49]} 5. c3 {[%emt 0:00:06]} Qc7 {[%emt 0:00:34]} 6. h3 {
[%emt 0:03:23]} Nf6 {[%emt 0:00:46]} 7. Bg5 {[%emt 0:03:48]} g6 {[%emt 0:06:18]
} 8. Qf3 {[%emt 0:02:22]} Bg7 {[%emt 0:06:11]} 9. Nd2 {[%emt 0:17:18]} Qd6 {
[%emt 0:23:14]} 10. Bf4 {[%emt 0:05:42]} Qd8 {[%emt 0:06:46]} 11. Qe2 {[%emt 0:
00:00]} O-O {[%emt 0:09:15]} 12. Ngf3 {[%emt 0:09:32]} Nh5 {[%emt 0:07:47]} 13.
Bh2 {[%emt 0:00:34]} Bh6 {[%emt 0:00:14]} 14. Ne5 {[%emt 0:14:20]} f6 {[%emt 0:
00:00]} 15. Ng4 {[%emt 0:00:57]} Bf4 {[%emt 0:00:17]} 16. g3 {[%emt 0:03:43]}
Bxd2+ {[%emt 0:05:35]} 17. Qxd2 {[%emt 0:03:39]} e5 {[%emt 0:00:12]} 18. dxe5 {
[%emt 0:00:28]} fxe5 {[%emt 0:00:12]} 19. O-O-O {[%emt 0:01:19]} Nf6 {[%emt 0:
00:00]} 20. Qh6 {[%emt 0:12:49]} Bxg4 {[%emt 0:06:04]} 0-1

[Event "44th Chess Olympiad Open 2022"]
[Site "Chennai"]
[Date "2022.08.06"]
[Round "8.53"]
[White "Arias Santana, Mauricio"]
[Black "Attalib, Osama A."]
[Result "1-0"]
[WhiteElo "2318"]
[BlackElo "2033"]
[Annotator "RC"]
[PlyCount "183"]
[EventDate "2022.??.??"]
[TimeControl "60"]

1. e4 {[%emt 0:00:14]} e5 {[%emt 0:00:12]} 2. Nf3 {[%emt 0:00:01]} Nc6 {
[%emt 0:00:11]} 3. Bb5 {[%emt 0:00:02]} a6 {[%emt 0:00:13]} 4. Ba4 {[%emt 0:00:
00]} Nf6 {[%emt 0:00:26]} 5. Bxc6 {[%emt 0:00:03]} dxc6 {[%emt 0:00:25]} 6. d3
{[%emt 0:00:02]} Bd6 {[%emt 0:02:46]} 7. Nbd2 {[%emt 0:00:11]} Be6 {[%emt 0:00:
00]} 8. b3 {[%emt 0:00:26]} Nd7 {[%emt 0:00:24]} 9. Bb2 {[%emt 0:00:30]} Qe7 {
[%emt 0:01:08]} 10. O-O {[%emt 0:00:09]} O-O {[%emt 0:06:04]} 11. Nc4 {[%emt 0:
00:00]} Bxc4 {[%emt 0:01:10]} 12. bxc4 {[%emt 0:01:05]} Rad8 {[%emt 0:04:12]}
13. a4 {[%emt 0:01:42]} a5 {[%emt 0:00:37]} 14. g3 {[%emt 0:01:09]} f5 {
[%emt 0:01:30]} 15. exf5 {[%emt 0:02:43]} Rxf5 {[%emt 0:00:22]} 16. Nd2 {
[%emt 0:00:24]} Rdf8 {[%emt 0:02:33]} 17. Kg2 {[%emt 0:03:27]} Nc5 {[%emt 0:00:
00]} 18. Qe2 {[%emt 0:02:38]} Qg5 {[%emt 0:03:10]} 19. Ne4 {[%emt 0:02:41]}
Nxe4 {[%emt 0:01:23]} 20. Qxe4 {[%emt 0:00:11]} Qd2 {[%emt 0:02:12]} 21. Qe3 {
[%emt 0:11:09]} Rxf2+ {[%emt 0:05:26]} 22. Qxf2 {[%emt 0:00:23]} Rxf2+ {
[%emt 0:00:09]} 23. Rxf2 {[%emt 0:00:04]} Qe3 {[%emt 0:08:31]} 24. Rf3 {
[%emt 0:02:51]} Qd2+ {[%emt 0:00:35]} 25. Rf2 {[%emt 0:00:01]} Qe3 {[%emt 0:00:
00]} 26. Raf1 {[%emt 0:08:41]} h6 {[%emt 0:02:14]} 27. Bc3 {[%emt 0:05:01]} b6
{[%emt 0:02:53]} 28. Re1 {[%emt 0:00:28]} Qc5 {[%emt 0:00:34]} 29. Ra1 {
[%emt 0:09:01]} Be7 {[%emt 0:07:50]} 30. Re2 {[%emt 0:06:23]} Bf6 {[%emt 0:00:
00]} 31. h4 {[%emt 0:00:19]} Qd6 {[%emt 0:08:00]} 32. Re4 {[%emt 0:00:22]} Qc5
{[%emt 0:05:50]} 33. h5 {[%emt 0:01:48]} Qd6 {[%emt 0:07:30]} 34. Rf1 {[%emt 0:
00:00]} Kh7 {[%emt 0:08:40]} 35. Rf2 {[%emt 0:28:34]} b5 {[%emt 0:09:51]} 36.
cxb5 {[%emt 0:04:25]} cxb5 {[%emt 0:00:04]} 37. axb5 {[%emt 0:00:44]} a4 {
[%emt 0:01:44]} 38. Rxa4 {[%emt 0:01:26]} Qd5+ {[%emt 0:00:34]} 39. Re4 {
[%emt 0:00:55]} Qxb5 {[%emt 0:00:16]} 40. Rfe2 {[%emt 0:00:43]} Qd5 {[%emt 0:
00:00]} 41. Kh2 {[%emt 0:32:57]} Qf7 {[%emt 0:31:07]} 42. g4 {[%emt 0:00:09]}
Qd7 {[%emt 0:00:12]} 43. Kg3 {[%emt 0:00:25]} Qc6 {[%emt 0:00:46]} 44. Bxe5 {
[%emt 0:01:04]} Bxe5+ {[%emt 0:00:10]} 45. Rxe5 {[%emt 0:00:01]} Qh1 {[%emt 0:
00:00]} 46. R5e4 {[%emt 0:01:47]} Qf1 {[%emt 0:00:00]} 47. Rf2 {[%emt 0:00:00]}
Qc1 {[%emt 0:00:00]} 48. Rc4 {[%emt 0:00:00]} Qe3+ {[%emt 0:00:00]} 49. Kg2 {
[%emt 0:00:00]} Qe5 {[%emt 0:00:00]} 50. Kf1 {[%emt 0:00:00]} Qa1+ {[%emt 0:00:
00]} 51. Ke2 {[%emt 0:00:00]} Qe5+ {[%emt 0:00:00]} 52. Re4 {[%emt 0:00:00]}
Qg3 {[%emt 0:00:00]} 53. Rf5 {[%emt 0:00:00]} Qg2+ {[%emt 0:00:00]} 54. Kd1 {
[%emt 0:00:00]} Qh2 {[%emt 0:00:00]} 55. Rc4 {[%emt 0:00:00]} Qg1+ {[%emt 0:00:
00]} 56. Kd2 {[%emt 0:00:00]} Qh2+ {[%emt 0:00:00]} 57. Kc3 {[%emt 0:00:00]}
Qd6 {[%emt 0:00:00]} 58. Rfc5 {[%emt 0:00:00]} Qf6+ {[%emt 0:00:00]} 59. Kb3 {
[%emt 0:00:00]} Qb6+ {[%emt 0:00:00]} 60. Ka2 {[%emt 0:00:00]} Qa6+ {[%emt 0:
00:00]} 61. Kb1 {[%emt 0:00:00]} Qb7+ {[%emt 0:00:00]} 62. Kc1 {[%emt 0:00:00]}
Qh1+ {[%emt 0:00:00]} 63. Kb2 {[%emt 0:00:00]} Qb7+ {[%emt 0:00:00]} 64. Kc3 {
[%emt 0:00:00]} Qb6 {[%emt 0:02:47]} 65. Rxc7 {[%emt 0:01:20]} Qa5+ {[%emt 0:
00:00]} 66. Kd4 {[%emt 0:05:38]} Qg5 {[%emt 0:00:17]} 67. R4c5 {[%emt 0:00:43]}
Qxg4+ {[%emt 0:01:13]} 68. Kc3 {[%emt 0:00:02]} Qe2 {[%emt 0:01:50]} 69. Rb7 {
[%emt 0:01:02]} Kh8 {[%emt 0:04:32]} 70. Rc8+ {[%emt 0:00:42]} Kh7 {[%emt 0:00:
00]} 71. Rcc7 {[%emt 0:00:16]} Qe1+ {[%emt 0:01:27]} 72. Kb2 {[%emt 0:01:00]}
Qe5+ {[%emt 0:00:25]} 73. c3 {[%emt 0:01:21]} Qe2+ {[%emt 0:00:59]} 74. Ka3 {
[%emt 0:00:09]} Qxd3 {[%emt 0:00:38]} 75. Rxg7+ {[%emt 0:00:07]} Kh8 {[%emt 0:
00:00]} 76. Rgc7 {[%emt 0:00:30]} Qd6+ {[%emt 0:00:55]} 77. Kb3 {[%emt 0:01:43]
} Qd1+ {[%emt 0:00:16]} 78. Kb4 {[%emt 0:00:35]} Qb1+ {[%emt 0:00:20]} 79. Kc5
{[%emt 0:00:58]} Qf5+ {[%emt 0:00:56]} 80. Kb6 {[%emt 0:00:19]} Qf2+ {[%emt 0:
00:00]} 81. Rc5 {[%emt 0:00:37]} Qb2+ {[%emt 0:00:21]} 82. Kc7 {[%emt 0:00:33]}
Qa3 {[%emt 0:00:14]} 83. Rc6 {[%emt 0:00:45]} Qa5+ {[%emt 0:00:34]} 84. Kb8 {
[%emt 0:00:17]} Qe5+ {[%emt 0:00:49]} 85. Rcc7 {[%emt 0:00:31]} Kg8 {[%emt 0:
00:00]} 86. c4 {[%emt 0:00:29]} Kf8 {[%emt 0:00:17]} 87. Ka8 {[%emt 0:00:23]}
Qa5+ {[%emt 0:00:28]} 88. Ra7 {[%emt 0:00:02]} Qf5 {[%emt 0:00:15]} 89. Rf7+ {
[%emt 0:00:24]} Qxf7 {[%emt 0:01:05]} 90. Rxf7+ {[%emt 0:00:02]} Kxf7 {[%emt 0:
00:00]} 91. c5 {[%emt 0:00:01]} Kf6 {[%emt 0:00:18]} 92. c6 {[%emt 0:00:02]}
1-0

[Event "44th Chess Olympiad Open 2022"]
[Site "Chennai"]
[Date "2022.08.06"]
[Round "8.53"]
[White "Chaves Sanchez, Gabriel A"]
[Black "Abugenda, Nagi"]
[Result "1/2-1/2"]
[WhiteElo "2125"]
[BlackElo "1991"]
[Annotator "NA RC"]
[PlyCount "130"]
[EventDate "2022.??.??"]
[TimeControl "60"]

1. e4 {[%emt 0:00:13]} d5 {[%emt 0:00:12]} 2. exd5 {[%emt 0:00:06]} Qxd5 {
[%emt 0:00:11]} 3. Nc3 {[%emt 0:00:06]} Qa5 {[%emt 0:00:08]} 4. d4 {[%emt 0:00:
00]} Nf6 {[%emt 0:00:08]} 5. Nf3 {[%emt 0:00:06]} Bf5 {[%emt 0:00:25]} 6. Ne5 {
[%emt 0:02:07]} c6 {[%emt 0:03:01]} 7. g4 {[%emt 0:07:42]} Bg6 {[%emt 0:03:26]}
8. h4 {[%emt 0:05:59]} Nbd7 {[%emt 0:05:44]} 9. Nc4 {[%emt 0:02:46]} Qc7 {
[%emt 0:01:36]} 10. h5 {[%emt 0:00:28]} Be4 {[%emt 0:00:44]} 11. Nxe4 {[%emt 0:
00:00]} Nxe4 {[%emt 0:00:20]} 12. Qf3 {[%emt 0:01:51]} Nd6 {[%emt 0:07:45]} 13.
Bf4 {[%emt 0:01:18]} Nb6 {[%emt 0:07:20]} 14. O-O-O {[%emt 0:04:52]} Nbxc4 {
[%emt 0:05:51]} 15. Bxc4 {[%emt 0:00:07]} e6 {[%emt 0:00:37]} 16. g5 {[%emt 0:
00:00]} O-O-O {[%emt 0:12:16]} 17. g6 {[%emt 0:04:35]} hxg6 {[%emt 0:03:39]}
18. hxg6 {[%emt 0:00:06]} Rxh1 {[%emt 0:00:36]} 19. Rxh1 {[%emt 0:02:42]} fxg6
{[%emt 0:07:38]} 20. Bxe6+ {[%emt 0:00:09]} Kb8 {[%emt 0:00:17]} 21. Qg4 {
[%emt 0:03:07]} Be7 {[%emt 0:09:00]} 22. Qxg6 {[%emt 0:03:55]} Bf6 {[%emt 0:00:
00]} 23. c3 {[%emt 0:02:18]} Qe7 {[%emt 0:02:55]} 24. Qf7 {[%emt 0:03:54]} Qxf7
{[%emt 0:01:15]} 25. Bxf7 {[%emt 0:00:16]} Ka8 {[%emt 0:01:08]} 26. Bg6 {
[%emt 0:00:07]} a6 {[%emt 0:04:08]} 27. Re1 {[%emt 0:00:42]} Rd7 {[%emt 0:00:
00]} 28. Re6 {[%emt 0:00:25]} Nb5 {[%emt 0:02:27]} 29. Re8+ {[%emt 0:00:24]}
Ka7 {[%emt 0:03:37]} 30. Bf5 {[%emt 0:00:20]} Rd5 {[%emt 0:02:35]} 31. Be6 {
[%emt 0:00:24]} Bg5 {[%emt 0:01:50]} 32. Bxg5 {[%emt 0:04:27]} Rxg5 {[%emt 0:
00:00]} 33. Rf8 {[%emt 0:00:45]} Nd6 {[%emt 0:02:36]} 34. f3 {[%emt 0:04:37]}
Rg6 {[%emt 0:01:35]} 35. Bg4 {[%emt 0:00:12]} Kb6 {[%emt 0:01:05]} 36. b3 {
[%emt 0:00:31]} Rh6 {[%emt 0:01:30]} 37. a4 {[%emt 0:01:35]} c5 {[%emt 0:01:33]
} 38. dxc5+ {[%emt 0:00:50]} Kxc5 {[%emt 0:00:09]} 39. Kc2 {[%emt 0:00:23]} b5
{[%emt 0:01:06]} 40. a5 {[%emt 0:12:59]} b4 {[%emt 0:02:12]} 41. Rg8 {[%emt 0:
00:00]} bxc3 {[%emt 0:31:18]} 42. Kxc3 {[%emt 0:00:21]} Nb5+ {[%emt 0:00:00]}
43. Kd3 {[%emt 0:00:00]} Rd6+ {[%emt 0:00:00]} 44. Ke3 {[%emt 0:00:00]} g6 {
[%emt 0:00:00]} 45. Kf4 {[%emt 0:00:00]} Kb4 {[%emt 0:00:00]} 46. Kg5 {[%emt 0:
00:00]} Nd4 {[%emt 0:00:00]} 47. f4 {[%emt 0:00:00]} Kxb3 {[%emt 0:00:00]} 48.
Rxg6 {[%emt 0:00:00]} Rd5+ {[%emt 0:00:00]} 49. f5 {[%emt 0:00:00]} Rxa5 {
[%emt 0:00:00]} 50. Kf4 {[%emt 0:00:00]} Nxf5 {[%emt 0:00:00]} 51. Bxf5 {
[%emt 0:00:00]} Ra1 {[%emt 0:00:00]} 52. Ke3 {[%emt 0:00:00]} a5 {[%emt 0:00:
00]} 53. Rb6+ {[%emt 0:00:00]} Kc3 {[%emt 0:00:00]} 54. Rc6+ {[%emt 0:00:00]}
Kb4 {[%emt 0:00:00]} 55. Kd4 {[%emt 0:00:00]} Rf1 {[%emt 0:01:58]} 56. Rb6+ {
[%emt 0:00:00]} Ka3 {[%emt 0:01:29]} 57. Bd3 {[%emt 0:00:00]} Rf4+ {[%emt 0:00:
00]} 58. Kc3 {[%emt 0:00:00]} Rb4 {[%emt 0:00:31]} 59. Rh6 {[%emt 0:00:00]}
Rb3+ {[%emt 0:00:33]} 60. Kc2 {[%emt 0:00:00]} Rb2+ {[%emt 0:00:21]} 61. Kc1 {
[%emt 0:00:00]} Rf2 {[%emt 0:01:41]} 62. Rh3 {[%emt 0:00:00]} Kb4 {[%emt 0:00:
00]} 63. Bc2 {[%emt 0:00:00]} Rf4 {[%emt 0:00:51]} 64. Rb3+ {[%emt 0:00:00]}
Kc5 {[%emt 0:00:20]} 65. Kb2 {[%emt 0:00:00]} Rb4 {[%emt 0:00:13]} 1/2-1/2